fUSD/lending_fUSD_20250302
["ID","MTS","AMOUNT","RATE_DAILY","PERIOD"]
[355163570,1740939062432,-834.57,0.0002726,2]
[355163571,1740939062442,-705.22,0.0002726,2]
[355163572,1740939062456,-500.0,0.0002726,2]
[355163573,1740939062466,-1244.05,0.0002726,2]
[355163574,1740939062475,-818.12,0.0002726,2]
[355163575,1740939062484,-861.37,0.0002726,2]
[355163576,1740939062495,-500.0,0.0002726,2]
[355163577,1740939062504,-574.72,0.0002726,2]
[355163578,1740939062514,-539.64,0.0002726,2]
[355163579,1740939062523,-500.0,0.00027261,2]
[355163580,1740939062533,-500.0,0.00027261,2]
[355163581,1740939062542,-500.0,0.00027261,2]
[355163582,1740939062552,-500.0,0.00027261,2]
[355163583,1740939062562,-500.0,0.00027261,2]
[355163584,1740939062571,-500.0,0.00027261,2]
[355163585,1740939062580,-500.0,0.00027261,2]
[355163586,1740939062589,-500.0,0.00027261,2]
[355163587,1740939062599,-500.0,0.00027261,2]
[355163588,1740939062610,-500.0,0.00027261,2]
[355163589,1740939062621,-500.0,0.00027261,2]
[355163590,1740939062634,-500.0,0.00027261,2]
[355163591,1740939062644,-500.0,0.00027261,2]
[355163592,1740939062654,-426.99385317,0.00027261,2]
[355163593,1740939062665,-503.26,0.00027261,2]
[355163594,1740939062675,-500.0,0.00027261,2]
[355163595,1740939062684,-500.0,0.00027261,2]
[355163596,1740939062694,-500.0,0.00027261,2]
[355163597,1740939062703,-500.0,0.00027261,2]
[355163598,1740939062713,-500.0,0.00027261,2]
[355163599,1740939062722,-500.0,0.00027261,2]
[355163600,1740939062733,-500.0,0.00027261,2]
[355163601,1740939062743,-500.0,0.00027261,2]
[355163602,1740939062753,-500.0,0.00027261,2]
[355163603,1740939062763,-750.0,0.00027261,2]
[355163604,1740939062773,-500.0,0.00027261,2]
[355163605,1740939062783,-500.0,0.00027261,2]
[355163606,1740939062795,-500.0,0.00027261,2]
[355163607,1740939062805,-500.0,0.00027261,2]
[355163608,1740939062815,-500.0,0.00027261,2]
[355163609,1740939062825,-500.0,0.00027261,2]
[355163610,1740939062835,-520.22,0.00027261,2]
[355163611,1740939062844,-500.0,0.00027261,2]
[355163612,1740939062854,-603.34,0.00027261,2]
[355163613,1740939062864,-500.0,0.00027261,2]
[355163614,1740939062876,-500.0,0.00027261,2]
[355163615,1740939062886,-857.56,0.00027261,2]
[355163616,1740939062896,-500.0,0.00027261,2]
[355163617,1740939062906,-500.0,0.00027261,2]
[355163618,1740939062916,-500.0,0.00027261,2]
[355163619,1740939062927,-500.0,0.00027261,2]
[355163620,1740939062939,-500.0,0.00027261,2]
[355163621,1740939062950,-500.0,0.00027261,2]
[355163622,1740939062960,-500.0,0.00027261,2]
[355163623,1740939062971,-500.0,0.00027261,2]
[355163624,1740939062981,-711.07,0.00027261,2]
[355163625,1740939062991,-500.0,0.00027261,2]
[355163626,1740939063001,-673.25,0.00027261,2]
[355163627,1740939063012,-500.0,0.00027261,2]
[355163628,1740939063024,-500.0,0.00027261,2]
[355163629,1740939063035,-927.56,0.00027261,2]
[355163630,1740939063047,-500.0,0.00027261,2]
[355163631,1740939063058,-814.36,0.00027261,2]
[355163632,1740939063070,-183.21,0.00027261,2]
[355163633,1740939063081,-676.78,0.00027261,2]
[355163634,1740939063091,-500.0,0.00027261,2]
[355163635,1740939063101,-500.0,0.00027261,2]
[355163636,1740939063112,-500.0,0.00027261,2]
[355163637,1740939063125,-500.0,0.00027261,2]
[355163638,1740939063137,-528.21,0.00027261,2]
[355163639,1740939063150,-500.0,0.00027261,2]
[355163640,1740939063162,-500.0,0.00027261,2]
[355163641,1740939063174,-600.53,0.00027261,2]
[355163642,1740939063186,-650.74,0.00027261,2]
[355163643,1740939063199,-500.0,0.00027261,2]
[355163644,1740939063210,-500.0,0.00027261,2]
[355163645,1740939063222,-608.12,0.00027261,2]
[355163646,1740939063234,-636.87,0.00027261,2]
[355163647,1740939063245,-500.0,0.00027261,2]
[355163648,1740939063257,-713.73,0.00027261,2]
[355163649,1740939063268,-500.0,0.00027261,2]
[355163650,1740939063279,-500.0,0.00027261,2]
[355163651,1740939063290,-592.31,0.00027261,2]
[355163652,1740939063302,-768.6,0.00027261,2]
[355163653,1740939063314,-500.0,0.00027261,2]
[355163654,1740939063325,-1343.9,0.00027261,2]
[355163655,1740939063339,-652.56,0.00027261,2]
[355163656,1740939063350,-4140.74,0.00027261,2]
[355163657,1740939063361,-596.26,0.00027261,2]
[355163658,1740939063377,-646.04,0.00027261,2]
[355163659,1740939063388,-500.0,0.00027261,2]
[355163660,1740939063399,-1270.43,0.00027261,2]
[355163661,1740939063411,-500.0,0.00027261,2]
[355163662,1740939063422,-791.57,0.00027261,2]
[355163663,1740939063433,-500.0,0.00027261,2]
[355163664,1740939063445,-500.0,0.00027261,2]
[355163665,1740939063459,-500.0,0.00027261,2]
[355163666,1740939063470,-500.0,0.00027262,2]
[355163667,1740939063482,-500.0,0.00027262,2]
[355163668,1740939063495,-500.0,0.00027262,2]
[355163669,1740939063507,-500.0,0.00027262,2]
[355163670,1740939063519,-234.86,0.00027262,2]
[355163671,1740939063530,-500.0,0.00027262,2]
[355163672,1740939063541,-500.0,0.00027262,2]
[355163673,1740939063556,-500.0,0.00027262,2]
[355163674,1740939063568,-500.0,0.00027262,2]
[355163675,1740939063579,-500.0,0.00027262,2]
[355163676,1740939063589,-500.0,0.00027262,2]
[355163677,1740939063600,-500.0,0.00027262,2]
[355163678,1740939063610,-500.0,0.00027262,2]
[355163679,1740939063620,-500.0,0.00027262,2]
[355163680,1740939063636,-500.0,0.00027262,2]
[355163681,1740939063646,-500.0,0.00027262,2]
[355163682,1740939063657,-500.0,0.00027262,2]
[355163683,1740939063668,-500.0,0.00027262,2]
[355163684,1740939063679,-500.0,0.00027262,2]
[355163685,1740939063689,-525.37,0.00027262,2]
[355163686,1740939063699,-500.0,0.00027262,2]
[355163687,1740939063715,-500.0,0.00027262,2]
[355163688,1740939063725,-500.0,0.00027262,2]
[355163689,1740939063736,-500.0,0.00027262,2]
[355163690,1740939063745,-500.0,0.00027262,2]
[355163691,1740939063755,-644.64,0.00027262,2]
[355163692,1740939063765,-500.0,0.00027262,2]
[355163693,1740939063776,-500.0,0.00027262,2]
[355163694,1740939063786,-856.65,0.00027262,2]
[355163695,1740939063796,-500.0,0.00027262,2]
[355163696,1740939063806,-1557.72,0.00027262,2]
[355163697,1740939063816,-500.0,0.00027262,2]
[355163698,1740939063827,-588.9,0.00027262,2]
[355163699,1740939063836,-927.56,0.00027262,2]
[355163700,1740939063847,-500.0,0.00027262,2]
[355163701,1740939063857,-1337.58,0.00027262,2]
[355163702,1740939063867,-500.0,0.00027262,2]
[355163703,1740939063882,-873.07,0.00027262,2]
[355163704,1740939063892,-500.0,0.00027262,2]
[355163705,1740939063903,-956.53,0.00027262,2]
[355163706,1740939063914,-1282.66,0.00027262,2]
[355163707,1740939063927,-1394.32,0.00027262,2]
[355163708,1740939063938,-763.69,0.00027262,2]
[355163709,1740939063949,-500.0,0.00027263,2]
[355163710,1740939063963,-401.49607623,0.00027263,2]
[355163711,1740939063974,-6400.4522,0.00027297,2]
[355163712,1740939063987,-500.0,0.00027361,2]
[355163713,1740939063997,-467.88,0.00027363,2]
[355163714,1740939064009,-152.0,0.00027364,2]
[355163715,1740939064020,-200.0,0.00027364,2]
[355163716,1740939064030,-2442.30193,0.00027364,2]
[355163717,1740939064041,-1000.0,0.00027396,2]
[355163718,1740939064051,-1000.0,0.00027396,2]
[355163719,1740939064061,-1000.0,0.00027396,2]
[355163720,1740939064071,-1000.0,0.00027396,2]
[355163721,1740939064082,-1000.0,0.00027396,2]
[355163722,1740939064093,-1000.0,0.00027396,2]
[355163723,1740939064103,-1000.0,0.00027396,2]
[355163724,1740939064114,-1000.0,0.00027396,2]
[355163725,1740939064128,-1000.0,0.00027396,2]
[355163726,1740939064139,-1000.0,0.00027396,2]
[355163727,1740939064151,-296.02188544,0.00027396,2]
[355163728,1740939064161,-1000.0,0.00027396,2]
[355163729,1740939064172,-1000.0,0.00027396,2]
[355163730,1740939064183,-1000.0,0.00027396,2]
[355163731,1740939064193,-1000.0,0.00027396,2]
[355163732,1740939064205,-1000.0,0.00027396,2]
[355163733,1740939064215,-1000.0,0.00027396,2]
[355163734,1740939064225,-1000.0,0.00027396,2]
[355163735,1740939064237,-1000.0,0.00027396,2]
[355163736,1740939064247,-1000.0,0.00027396,2]
[355163737,1740939064258,-1000.0,0.00027396,2]
[355163738,1740939064268,-351.20563288,0.00027396,2]
[355163739,1740939064279,-151.0,0.00027397,7]
[355163740,1740939064290,-151.0,0.00027397,7]
[355163741,1740939064300,-151.0,0.00027397,7]
[355163742,1740939064311,-151.0,0.00027397,7]
[355163743,1740939064321,-228.944801,0.00027397,7]
[355163744,1740939064332,-248.019775,0.00027397,7]
[355163745,1740939064342,-248.019775,0.00027397,7]
[355163746,1740939064355,-151.0,0.00027397,7]
[355163747,1740939064365,-151.0,0.00027397,7]
[355163748,1740939064378,-303.69566031,0.00027397,120]
[355163749,1740939064388,-1000.0,0.00027397,2]
[355163750,1740939064399,-1000.0,0.00027397,2]
[355163751,1740939064409,-1000.0,0.00027397,2]
[355163752,1740939064681,-1000.0,0.00027397,2]
[355163753,1740939064711,-1000.0,0.00027397,2]
[355163754,1740939064720,-1000.0,0.00027397,2]
[355163755,1740939064731,-1000.0,0.00027397,2]
[355163756,1740939064740,-1000.0,0.00027397,2]
[355163757,1740939064751,-1000.0,0.00027397,2]
[355163758,1740939064762,-1000.0,0.00027397,7]
[355163759,1740939064772,-1000.0,0.00027397,7]
[355163760,1740939064782,-1000.0,0.00027397,7]
[355163761,1740939064792,-1000.0,0.00027397,7]
[355163762,1740939064801,-1000.0,0.00027397,7]
[355163763,1740939064811,-1027.48,0.00027397,7]
[355163764,1740939064820,-150.0,0.00027397,2]
[355163765,1740939064830,-345.91905719,0.00027417,4]
[355163766,1740939064841,-1732.71,0.00027534,2]
[355163767,1740939064852,-248.006781,0.00027534,2]
[355163768,1740939064868,-550.93,0.00027534,2]
[355163769,1740939064885,-679.32,0.00027534,2]
[355163770,1740939064895,-822.5,0.00027534,2]
[355163771,1740939064905,-196.854988,0.00027534,2]
[355163772,1740939064918,-625.27,0.00027534,2]
[355163773,1740939064929,-720.38,0.00027534,2]
[355163774,1740939064939,-1866.42,0.00027534,2]
[355163775,1740939064950,-1050.5,0.00027534,2]
[355163776,1740939064961,-930.37,0.00027534,2]
[355163777,1740939064971,-1219.5,0.00027534,2]
[355163778,1740939064982,-629.6,0.00027534,2]
[355163779,1740939064993,-1652.74,0.00027534,2]
[355163780,1740939065003,-518.97,0.00027534,2]
[355163781,1740939065013,-701.89,0.00027534,2]
[355163782,1740939065023,-500.0,0.00027534,2]
[355163783,1740939065033,-500.0,0.00027534,2]
[355163784,1740939065044,-979.63,0.00027534,2]
[355163785,1740939065054,-898.75,0.00027534,2]
[355163786,1740939065064,-500.0,0.00027534,2]
[355163787,1740939065074,-500.0,0.00027534,2]
[355163788,1740939065084,-500.0,0.00027534,2]
[355163789,1740939065094,-632.66,0.00027534,2]
[355163790,1740939065104,-500.0,0.00027534,2]
[355163791,1740939065115,-867.95,0.00027534,2]
[355163792,1740939065127,-533.61,0.00027534,2]
[355163793,1740939065137,-808.44,0.00027534,2]
[355163794,1740939065147,-500.0,0.00027534,2]
[355163795,1740939065158,-500.0,0.00027534,2]
[355163796,1740939065168,-500.0,0.00027534,2]
[355163797,1740939065178,-510.05,0.00027534,2]
[355163798,1740939065188,-500.0,0.00027534,2]
[355163799,1740939065199,-515.47,0.00027534,2]
[355163800,1740939065209,-500.0,0.00027534,2]
[355163801,1740939065219,-544.53,0.00027534,2]
[355163802,1740939065229,-500.0,0.00027534,2]
[355163803,1740939065239,-500.0,0.00027534,2]
[355163804,1740939065249,-834.57,0.00027534,2]
[355163805,1740939065260,-705.22,0.00027534,2]
[355163806,1740939065270,-500.0,0.00027534,2]
[355163807,1740939065280,-1244.05,0.00027534,2]
[355163808,1740939065290,-818.12,0.00027534,2]
[355163809,1740939065301,-861.37,0.00027534,2]
[355163810,1740939065311,-500.0,0.00027534,2]
[355163811,1740939065322,-574.72,0.00027534,2]
[355163812,1740939065334,-539.64,0.00027534,2]
[355163813,1740939065344,-500.0,0.00027535,2]
[355163814,1740939065354,-500.0,0.00027535,2]
[355163815,1740939065364,-500.0,0.00027535,2]
[355163816,1740939065379,-500.0,0.00027535,2]
[355163817,1740939065390,-500.0,0.00027535,2]
[355163818,1740939065399,-500.0,0.00027535,2]
[355163819,1740939065412,-500.0,0.00027535,2]
[355163820,1740939065422,-500.0,0.00027535,2]
[355163821,1740939065431,-500.0,0.00027535,2]
[355163822,1740939065440,-179.45,0.00027535,2]
[355163823,1740939065450,-500.0,0.00027535,2]
[355163824,1740939065461,-500.0,0.00027535,2]
[355163825,1740939065472,-500.0,0.00027535,2]
[355163826,1740939065482,-503.26,0.00027535,2]
[355163827,1740939065491,-500.0,0.00027535,2]
[355163828,1740939065501,-500.0,0.00027535,2]
[355163829,1740939065510,-1000.0,0.00027535,2]
[355163830,1740939065520,-500.0,0.00027535,2]
[355163831,1740939065529,-500.0,0.00027535,2]
[355163832,1740939065538,-500.0,0.00027535,2]
[355163833,1740939065548,-500.0,0.00027535,2]
[355163834,1740939065557,-500.0,0.00027535,2]
[355163835,1740939065567,-500.0,0.00027535,2]
[355163836,1740939065576,-500.0,0.00027535,2]
[355163837,1740939065586,-750.0,0.00027535,2]
[355163838,1740939065596,-500.0,0.00027535,2]
[355163839,1740939065606,-500.0,0.00027535,2]
[355163840,1740939065615,-500.0,0.00027535,2]
[355163841,1740939065627,-500.0,0.00027535,2]
[355163842,1740939065637,-500.0,0.00027535,2]
[355163843,1740939065647,-500.0,0.00027535,2]
[355163844,1740939065656,-520.22,0.00027535,2]
[355163845,1740939065665,-500.0,0.00027535,2]
[355163846,1740939065675,-603.34,0.00027535,2]
[355163847,1740939065685,-500.0,0.00027535,2]
[355163848,1740939065695,-500.0,0.00027535,2]
[355163849,1740939065705,-857.56,0.00027535,2]
[355163850,1740939065714,-467.46924915,0.00027535,2]
[355163851,1740939065724,-413.4185639,0.00027535,2]
[355163852,1740939065733,-500.0,0.00027535,2]
[355163853,1740939065743,-500.0,0.00027535,2]
[355163854,1740939065752,-500.0,0.00027535,2]
[355163855,1740939065762,-500.0,0.00027535,2]
[355163856,1740939065773,-500.0,0.00027535,2]
[355163857,1740939065783,-500.0,0.00027535,2]
[355163858,1740939065793,-711.07,0.00027535,2]
[355163859,1740939065804,-500.0,0.00027535,2]
[355163860,1740939065814,-673.25,0.00027535,2]
[355163861,1740939065823,-500.0,0.00027535,2]
[355163862,1740939065833,-500.0,0.00027535,2]
[355163863,1740939065844,-927.56,0.00027535,2]
[355163864,1740939065855,-500.0,0.00027535,2]
[355163865,1740939065866,-814.36,0.00027535,2]
[355163866,1740939065878,-676.78,0.00027535,2]
[355163867,1740939065888,-500.0,0.00027535,2]
[355163868,1740939065898,-173.4,0.00027535,2]
[355163869,1740939065908,-500.0,0.00027535,2]
[355163870,1740939065918,-500.0,0.00027535,2]
[355163871,1740939065928,-528.21,0.00027535,2]
[355163872,1740939065948,-500.0,0.00027535,2]
[355163873,1740939065959,-500.0,0.00027535,2]
[355163874,1740939065970,-600.53,0.00027535,2]
[355163875,1740939065980,-650.74,0.00027535,2]
[355163876,1740939065990,-500.0,0.00027535,2]
[355163877,1740939065999,-500.0,0.00027535,2]
[355163878,1740939066010,-608.12,0.00027535,2]
[355163879,1740939066021,-500.0,0.00027535,2]
[355163880,1740939066031,-713.73,0.00027535,2]
[355163881,1740939066041,-500.0,0.00027535,2]
[355163882,1740939066051,-500.0,0.00027535,2]
[355163883,1740939066061,-592.31,0.00027535,2]
[355163884,1740939066071,-768.6,0.00027535,2]
[355163885,1740939066080,-500.0,0.00027535,2]
[355163886,1740939066091,-1343.9,0.00027535,2]
[355163887,1740939066101,-652.56,0.00027535,2]
[355163888,1740939066111,-4140.74,0.00027535,2]
[355163889,1740939066122,-596.26,0.00027535,2]
[355163890,1740939066136,-500.0,0.00027535,2]
[355163891,1740939066148,-1270.43,0.00027535,2]
[355163892,1740939066159,-500.0,0.00027535,2]
[355163893,1740939066169,-791.57,0.00027535,2]
[355163894,1740939066180,-500.0,0.00027535,2]
[355163895,1740939066192,-500.0,0.00027535,2]
[355163896,1740939066204,-762.55,0.00027536,7]
[355163897,1740939066214,-151.0,0.00027536,7]
[355163898,1740939066224,-762.55,0.00027536,7]
[355163899,1740939066234,-500.0,0.00027536,2]
[355163900,1740939066243,-500.0,0.00027536,2]
[355163901,1740939066253,-500.0,0.00027536,2]
[355163902,1740939066264,-500.0,0.00027536,2]
[355163903,1740939066274,-500.0,0.00027536,2]
[355163904,1740939066283,-500.0,0.00027536,2]
[355163905,1740939066292,-500.0,0.00027536,2]
[355163906,1740939066302,-500.0,0.00027536,2]
[355163907,1740939066312,-500.0,0.00027536,2]
[355163908,1740939066322,-500.0,0.00027536,2]
[355163909,1740939066332,-500.0,0.00027536,2]
[355163910,1740939066342,-500.0,0.00027536,2]
[355163911,1740939066353,-500.0,0.00027536,2]
[355163912,1740939066368,-500.0,0.00027536,2]
[355163913,1740939066380,-500.0,0.00027536,2]
[355163914,1740939066391,-500.0,0.00027536,2]
[355163915,1740939066402,-500.0,0.00027536,2]
[355163916,1740939066412,-500.0,0.00027536,2]
[355163917,1740939066421,-525.37,0.00027536,2]
[355163918,1740939066430,-500.0,0.00027536,2]
[355163919,1740939066440,-500.0,0.00027536,2]
[355163920,1740939066450,-500.0,0.00027536,2]
[355163921,1740939066460,-500.0,0.00027536,2]
[355163922,1740939066470,-500.0,0.00027536,2]
[355163923,1740939066480,-500.0,0.00027536,2]
[355163924,1740939066489,-500.0,0.00027536,2]
[355163925,1740939066499,-856.65,0.00027536,2]
[355163926,1740939066509,-500.0,0.00027536,2]
[355163927,1740939066519,-1557.72,0.00027536,2]
[355163928,1740939066529,-500.0,0.00027536,2]
[355163929,1740939066540,-588.9,0.00027536,2]
[355163930,1740939066550,-927.56,0.00027536,2]
[355163931,1740939066560,-500.0,0.00027536,2]
[355163932,1740939066570,-1337.58,0.00027536,2]
[355163933,1740939066580,-500.0,0.00027536,2]
[355163934,1740939066591,-873.07,0.00027536,2]
[355163935,1740939066602,-500.0,0.00027536,2]
[355163936,1740939066611,-956.53,0.00027536,2]
[355163937,1740939066621,-1282.66,0.00027536,2]
[355163938,1740939066633,-1394.32,0.00027536,2]
[355163939,1740939066643,-151.0,0.00027536,7]
[355163940,1740939066652,-151.0,0.00027536,7]
[355163941,1740939066661,-763.69,0.00027536,2]
[355163942,1740939066671,-151.0,0.00027536,7]
[355163943,1740939066681,-151.0,0.00027536,7]
[355163944,1740939066690,-584.127414,0.00027536,7]
[355163945,1740939066700,-584.127414,0.00027536,7]
[355163946,1740939066710,-151.0,0.00027536,7]
[355163947,1740939066720,-151.0,0.00027536,7]
[355163948,1740939066730,-151.0,0.00027536,7]
[355163949,1740939066740,-165.943842,0.00027536,7]
[355163950,1740939066749,-151.385668,0.00027536,7]
[355163951,1740939066759,-500.0,0.00027537,2]
[355163952,1740939066769,-3089.69456907,0.00027616,2]
[355163953,1740939066779,-234.75068173,0.00027621,2]
[355163954,1740939066788,-345.91905719,0.00027624,4]
[355163955,1740939066798,-151.0,0.00027636,7]
[355163956,1740939066807,-200.0,0.00027638,2]
[355163957,1740939066816,-151.0,0.00027671,7]
[355163958,1740939066826,-151.0,0.00027671,7]
[355163959,1740939066835,-1295.135676,0.00027671,7]
[355163960,1740939066846,-1295.135676,0.00027671,7]
[355163961,1740939066855,-253.0,0.00027671,2]
[355163962,1740939066865,-243.34857083,0.00027707,2]
[355163963,1740939066875,-170.33757884,0.00027708,2]
[355163964,1740939066886,-2764.77866452,0.00027708,2]
[355163965,1740939066896,-613.886648,0.000278,2]
[355163966,1740939066906,-1325.0,0.000278,2]
[355163967,1740939066916,-1732.71,0.00027808,2]
[355163968,1740939066925,-248.006781,0.00027808,2]
[355163969,1740939066935,-550.93,0.00027808,2]
[355163970,1740939066945,-679.32,0.00027808,2]
[355163971,1740939066954,-822.5,0.00027808,2]
[355163972,1740939066964,-196.854988,0.00027808,2]
[355163973,1740939066973,-625.27,0.00027808,2]
[355163974,1740939066984,-720.38,0.00027808,2]
[355163975,1740939066994,-156.405449,0.00027808,7]
[355163976,1740939067003,-1866.42,0.00027808,2]
[355163977,1740939067014,-1050.5,0.00027808,2]
[355163978,1740939067023,-930.37,0.00027808,2]
[355163979,1740939067032,-151.0,0.00027808,7]
[355163980,1740939067043,-1219.5,0.00027808,2]
[355163981,1740939067052,-629.6,0.00027808,2]
[355163982,1740939067062,-1652.74,0.00027808,2]
[355163983,1740939067072,-518.97,0.00027808,2]
[355163984,1740939067081,-701.89,0.00027808,2]
[355163985,1740939067091,-500.0,0.00027808,2]
[355163986,1740939067101,-500.0,0.00027808,2]
[355163987,1740939067111,-979.63,0.00027808,2]
[355163988,1740939067120,-898.75,0.00027808,2]
[355163989,1740939067132,-500.0,0.00027808,2]
[355163990,1740939067141,-500.0,0.00027808,2]
[355163991,1740939067151,-230.710354,0.00027808,7]
[355163992,1740939067161,-230.710354,0.00027808,7]
[355163993,1740939067234,-500.0,0.00027808,2]
[355163994,1740939067246,-632.66,0.00027808,2]
[355163995,1740939067256,-500.0,0.00027808,2]
[355163996,1740939067266,-867.95,0.00027808,2]
[355163997,1740939067275,-533.61,0.00027808,2]
[355163998,1740939067285,-808.44,0.00027808,2]
[355163999,1740939067294,-500.0,0.00027808,2]
[355164000,1740939067304,-500.0,0.00027808,2]
[355164001,1740939067313,-500.0,0.00027808,2]
[355164002,1740939067323,-510.05,0.00027808,2]
[355164003,1740939067332,-500.0,0.00027808,2]
[355164004,1740939067342,-515.47,0.00027808,2]
[355164005,1740939067353,-500.0,0.00027808,2]
[355164006,1740939067364,-544.53,0.00027808,2]
[355164007,1740939067377,-621.80131787,0.00027808,2]
[355164008,1740939067386,-500.0,0.00027808,2]
[355164009,1740939067395,-834.57,0.00027808,2]
[355164010,1740939067405,-705.22,0.00027808,2]
[355164011,1740939067414,-500.0,0.00027808,2]
[355164012,1740939067426,-1244.05,0.00027808,2]
[355164013,1740939067435,-818.12,0.00027808,2]
[355164014,1740939067445,-861.37,0.00027808,2]
[355164015,1740939067454,-500.0,0.00027808,2]
[355164016,1740939067464,-574.72,0.00027808,2]
[355164017,1740939067472,-539.64,0.00027808,2]
[355164018,1740939067481,-470.38,0.00027809,2]
[355164019,1740939067491,-500.0,0.00027809,2]
[355164020,1740939067500,-500.0,0.00027809,2]
[355164021,1740939067509,-500.0,0.00027809,2]
[355164022,1740939067519,-500.0,0.00027809,2]
[355164023,1740939067528,-500.0,0.00027809,2]
[355164024,1740939067537,-500.0,0.00027809,2]
[355164025,1740939067546,-500.0,0.00027809,2]
[355164026,1740939067555,-500.0,0.00027809,2]
[355164027,1740939067565,-500.0,0.00027809,2]
[355164028,1740939067574,-500.0,0.00027809,2]
[355164029,1740939067583,-632.88385966,0.00027809,2]
[355164030,1740939067592,-500.0,0.00027809,2]
[355164031,1740939067601,-503.26,0.00027809,2]
[355164032,1740939067611,-305.5,0.00027809,2]
[355164033,1740939067620,-1000.0,0.00027809,2]
[355164034,1740939067631,-500.0,0.00027809,2]
[355164035,1740939067641,-500.0,0.00027809,2]
[355164036,1740939067650,-500.0,0.00027809,2]
[355164037,1740939067660,-500.0,0.00027809,2]
[355164038,1740939067669,-500.0,0.00027809,2]
[355164039,1740939067679,-500.0,0.00027809,2]
[355164040,1740939067688,-500.0,0.00027809,2]
[355164041,1740939067698,-750.0,0.00027809,2]
[355164042,1740939067707,-642.44064178,0.00027809,2]
[355164043,1740939067716,-500.0,0.00027809,2]
[355164044,1740939067726,-500.0,0.00027809,2]
[355164045,1740939067735,-500.0,0.00027809,2]
[355164046,1740939067745,-500.0,0.00027809,2]
[355164047,1740939067755,-500.0,0.00027809,2]
[355164048,1740939067764,-520.22,0.00027809,2]
[355164049,1740939067773,-500.0,0.00027809,2]
[355164050,1740939067782,-603.34,0.00027809,2]
[355164051,1740939067791,-627.80106132,0.00027809,2]
[355164052,1740939067801,-500.0,0.00027809,2]
[355164053,1740939067811,-857.56,0.00027809,2]
[355164054,1740939067820,-500.0,0.00027809,2]
[355164055,1740939067829,-564.21522365,0.00027809,2]
[355164056,1740939067838,-500.0,0.00027809,2]
[355164057,1740939067848,-500.0,0.00027809,2]
[355164058,1740939067857,-500.0,0.00027809,2]
[355164059,1740939067866,-500.0,0.00027809,2]
[355164060,1740939067875,-500.0,0.00027809,2]
[355164061,1740939067886,-711.07,0.00027809,2]
[355164062,1740939067894,-500.0,0.00027809,2]
[355164063,1740939067904,-673.25,0.00027809,2]
[355164064,1740939067913,-500.0,0.00027809,2]
[355164065,1740939067922,-500.0,0.00027809,2]
[355164066,1740939067932,-927.56,0.00027809,2]
[355164067,1740939067941,-500.0,0.00027809,2]
[355164068,1740939067951,-814.36,0.00027809,2]
[355164069,1740939067960,-676.78,0.00027809,2]